bitfinex/quotes_ETHUSD_20230117
["timestamp","ask_amount","ask_price","bid_price","bid_amount"]
[1673955110440,0.20291492,1567.3,1567.2,31.81840042]
[1673955117020,0.20291492,1567.3,1567.2,31.58840042]
[1673955117180,0.20291492,1567.3,1567.2,25.25902407]
[1673955117392,0.20291492,1567.3,1567.2,18.87822407]
[1673955118995,0.20291492,1567.3,1567.2,25.25902407]
[1673955119832,0.20291492,1567.3,1567.2,26.48402407]
[1673955120047,0.20291492,1567.3,1567.2,26.71402407]
[1673955120276,0.20291492,1567.3,1567.2,30.03011148]
[1673955120421,0.20291492,1567.3,1567.2,29.80011148]
[1673955122732,0.20291492,1567.3,1567.2,30.03011148]
[1673955128423,0.20291492,1567.3,1567.2,31.25511148]
[1673955129576,0.20884365,1567.5,1567.2,31.25511148]
[1673955129789,0.20884365,1567.5,1567.4,19.13997]
[1673955130005,0.20884365,1567.5,1567.4,25.25659407]
[1673955138367,0.20884365,1567.5,1567.4,25.48659407]
[1673955139088,0.20884365,1567.5,1567.4,30.44859407]
[1673955139320,0.20884365,1567.5,1567.4,26.94859407]
[1673955139669,0.20884365,1567.5,1567.4,31.39751959]
[1673955141905,0.20884365,1567.5,1567.4,31.93349158]
[1673955145186,0.20884365,1567.5,1567.4,31.70349158]
[1673955145359,0.20884365,1567.5,1567.4,31.16751959]
[1673955146617,0.20884365,1567.5,1567.4,31.39751959]
[1673955148672,0.20884365,1567.5,1567.4,12.25754959]
[1673955148866,0.20884365,1567.5,1567.4,18.63753959]
[1673955149076,0.20884365,1567.5,1567.4,26.94859407]
[1673955149561,2.21802397,1567.8,1567.7,0.47388656]
[1673955149562,0.30778961,1567.8,1567.7,0.47388656]
[1673955149776,0.24178961,1567.8,1567.7,5.28251063]
[1673955150045,0.24178961,1567.8,1567.7,30.79759063]
[1673955150191,0.24178961,1567.8,1567.7,36.88394969]
[1673955158311,0.25151551,1567.9,1567.7,52.0950703]
[1673955158687,0.25151551,1567.9,1567.8,10.27062407]
[1673955158834,0.25151551,1567.9,1567.8,29.40570407]
[1673955159519,0.25151551,1567.9,1567.8,29.94167606]
[1673955159691,0.25151551,1567.9,1567.8,36.10609223]
[1673955159904,0.25151551,1567.9,1567.8,34.10812024]
[1673955161391,5.51e-06,1567.9,1567.8,40.48648024]
[1673955161575,5.51e-06,1567.9,1567.8,41.02245223]
[1673955161787,5.51e-06,1567.9,1567.8,40.48648024]
[1673955162952,0.24956045,1568.0,1567.9,1.0]
[1673955163156,0.24956045,1568.0,1567.9,27.62912209]
[1673955163390,0.24956045,1568.0,1567.9,30.62912209]
[1673955164422,0.24956045,1568.0,1567.9,29.62912209]
[1673955165034,0.24956045,1568.0,1567.9,6.11662407]
[1673955165035,1.34556045,1568.0,1567.9,6.11662407]
[1673955166727,0.24956045,1568.0,1567.9,18.87252407]
[1673955169449,0.24956045,1568.0,1567.9,25.25047407]
[1673955170500,0.24956045,1568.0,1567.9,18.87252407]
[1673955172913,1.34556045,1568.0,1567.9,6.11662407]
[1673955173174,2.63770505,1568.0,1567.9,6.11662407]
[1673955173384,4.07031159,1568.0,1567.9,6.11662407]
[1673955174069,1.54170505,1568.0,1567.9,6.11662407]
[1673955174858,1.20463148,1568.0,1567.9,12.49457407]
[1673955175227,1.20463148,1568.0,1567.9,12.32007245]
[1673955175717,2.63723802,1568.0,1567.9,12.32007245]
[1673955177223,1.68216699,1568.0,1567.9,12.32007245]
[1673955177434,2.63598526,1568.0,1567.9,12.32007245]
[1673955179081,3.17055699,1568.0,1567.9,12.32007245]
[1673955179214,2.21673872,1568.0,1567.9,5.94212245]
[1673955180637,2.21673872,1568.0,1567.9,3.0]
[1673955181425,4.12697308,1568.0,1567.9,3.0]
[1673955182425,2.69436654,1568.0,1567.9,3.50662561]
[1673955186861,2.69636654,1568.0,1567.9,3.50662561]
[1673955187189,2.69436654,1568.0,1567.9,3.50662561]
[1673955187410,5.08215949,1568.0,1567.9,3.50662561]
[1673955187751,2.6689097,1568.0,1567.9,3.50662561]
[1673955187910,2.6029097,1568.0,1567.9,3.50662561]
[1673955188122,4.99070265,1568.0,1567.9,3.50662561]
[1673955188529,4.53946829,1568.0,1567.9,0.50662561]
[1673955189280,10.91701829,1568.0,1567.9,0.50662561]
[1673955189474,10.98301829,1568.0,1567.9,0.50662561]
[1673955191526,14.97277534,1568.0,1567.9,0.50662561]
[1673955191994,17.83955833,1568.0,1567.9,0.50662561]
[1673955192360,17.83955833,1568.0,1567.7,3.47388656]
[1673955192645,2.3880698,1567.8,1567.7,3.47388656]
[1673955193603,2.3880262,1567.9,1567.7,3.47388656]
[1673955193814,3.35748589,1567.8,1567.7,0.47388656]
[1673955194062,4.83608589,1567.8,1567.7,0.47388656]
[1673955194389,6.2036191,1567.8,1567.7,0.47388656]
[1673955194599,6.2766191,1567.8,1567.7,0.47388656]
[1673955194755,5.2766191,1567.8,1567.7,0.47388656]
[1673955196591,6.2766191,1567.8,1567.7,0.47388656]
[1673955198279,5.2766191,1567.8,1567.7,0.47388656]
[1673955198431,6.2766191,1567.8,1567.7,0.47388656]
[1673955198888,12.6549791,1567.8,1567.7,0.47388656]
[1673955199636,14.1169791,1567.8,1567.7,0.47388656]
[1673955199794,13.1169791,1567.8,1567.7,0.47388656]
[1673955200006,11.6699791,1567.8,1567.7,0.47388656]
[1673955201679,18.0483391,1567.8,1567.7,0.47388656]
[1673955201887,19.5103391,1567.8,1567.7,0.47388656]
[1673955202197,27.70947649,1567.8,1567.7,0.47388656]
[1673955204187,30.57520533,1567.8,1567.7,0.47388656]
[1673955204353,27.70947649,1567.8,1567.7,0.47388656]
[1673955205293,30.57520533,1567.8,1567.7,0.47388656]
[1673955206243,27.70947649,1567.8,1567.7,0.47388656]
[1673955207093,32.28810056,1567.8,1567.7,0.47388656]
[1673955207609,35.1538294,1567.8,1567.7,0.47388656]
[1673955208030,35.1538294,1567.8,1567.3,0.04466314]
[1673955208350,21.55602656,1567.4,1567.3,0.04466314]
[1673955208560,22.10772656,1567.4,1567.3,0.04466314]
[1673955209348,26.30213542,1567.4,1567.3,0.04466314]
[1673955209500,24.49242045,1567.4,1567.3,0.04466314]
[1673955209711,28.20980103,1567.4,1567.3,0.04466314]
[1673955209921,29.57733424,1567.4,1567.3,0.04466314]
[1673955210131,28.14669691,1567.4,1567.3,0.04466314]
[1673955211323,24.42931633,1567.4,1567.3,0.04466314]
[1673955211662,28.14669691,1567.4,1567.3,0.04466314]
[1673955212288,29.5757351,1567.4,1567.3,0.04466314]
[1673955212446,28.14669691,1567.4,1567.3,0.04466314]
[1673955213118,29.57573159,1567.4,1567.3,0.04466314]
[1673955213335,25.85835681,1567.4,1567.3,0.04466314]
[1673955213719,23.95024369,1567.4,1567.3,0.04466314]
[1673955214141,25.85835681,1567.4,1567.3,0.04466314]
[1673955214376,23.95024369,1567.4,1567.3,0.04466314]
[1673955214582,27.66762427,1567.4,1567.3,0.04466314]
[1673955215492,23.95024369,1567.4,1567.3,0.04466314]
[1673955215854,25.85835681,1567.4,1567.3,0.04466314]
[1673955216177,25.8573511,1567.4,1567.3,0.04466314]
[1673955216401,32.69135575,1567.4,1567.3,0.04466314]
[1673955217612,32.69148861,1567.4,1567.3,0.04466314]
[1673955217804,31.26332098,1567.4,1567.3,0.04466314]
[1673955218344,31.49332098,1567.4,1567.3,0.04466314]
[1673955218768,32.95132098,1567.4,1567.3,0.04466314]
[1673955219518,35.33646238,1567.4,1567.3,0.04466314]
[1673955219926,31.48932098,1567.4,1567.3,0.04466314]
[1673955220682,32.91678562,1567.4,1567.3,0.04466314]
[1673955220919,29.19940504,1567.4,1567.3,0.04466314]
[1673955221085,27.06129192,1567.4,1567.3,0.04466314]
[1673955221432,28.01288303,1567.4,1567.3,0.04466314]
[1673955221603,28.01288409,1567.4,1567.3,0.04466314]
[1673955221816,27.06129192,1567.4,1567.3,0.04466314]
[1673955222687,30.7786725,1567.4,1567.3,0.04466314]
[1673955222909,27.06129192,1567.4,1567.3,0.04466314]
[1673955223064,28.96940504,1567.4,1567.3,0.04466314]
[1673955223301,32.68678562,1567.4,1567.3,0.04466314]
[1673955223701,27.5419404,1567.4,1567.3,0.04466314]
[1673955223945,34.29080156,1567.4,1567.3,0.04466314]
[1673955224124,36.25902762,1567.4,1567.3,0.04466314]
[1673955224329,37.07468844,1567.4,1567.3,0.04466314]
[1673955224740,35.26043283,1567.4,1567.3,0.04466314]
[1673955224955,36.59267201,1567.4,1567.3,0.04466314]
[1673955225689,32.87529143,1567.4,1567.3,0.04466314]
[1673955226836,36.59267201,1567.4,1567.3,0.04466314]
[1673955227528,34.30270413,1567.4,1567.3,0.04466314]
[1673955227692,30.94157916,1567.4,1567.3,0.04466314]
[1673955228119,30.29523998,1567.4,1567.3,0.04466314]
[1673955228329,32.19836495,1567.4,1567.3,0.04466314]
[1673955228772,30.29523998,1567.4,1567.3,0.04466314]
[1673955229100,30.06523998,1567.4,1567.3,0.04466314]
[1673955230350,31.96836495,1567.4,1567.3,0.04466314]
[1673955230568,30.54095225,1567.4,1567.3,0.04466314]
[1673955231468,31.96926239,1567.4,1567.3,0.04878934]
[1673955232026,31.96926239,1567.4,1567.3,0.04498989]
[1673955232451,30.54095225,1567.4,1567.3,0.04498989]
[1673955232846,30.06678222,1567.4,1567.3,0.04498989]
[1673955233200,20.64192494,1567.4,1567.3,0.04498989]
[1673955233528,2.45456219,1567.4,1567.3,1.14098989]
[1673955233834,7.40538725,1567.5,1567.3,1.14098989]
[1673955233999,8.83434219,1567.5,1567.3,1.14098989]
[1673955234549,0.95260725,1567.4,1567.3,0.04498989]
[1673955238758,0.95260725,1567.4,1567.3,4.90019195]
[1673955238930,0.95260725,1567.5,1567.3,25.50236195]
[1673955239136,2.38156219,1567.6,1567.4,15.87610407]
[1673955239349,2.38156219,1567.6,1567.4,15.92810407]
[1673955240472,0.95260725,1567.5,1567.4,15.92810407]
[1673955240617,0.95260725,1567.5,1567.4,19.53731027]
[1673955242197,0.95260725,1567.5,1567.4,0.052]
[1673955242412,0.95260725,1567.5,1567.3,11.71798989]
[1673955242413,2.38156219,1567.5,1567.3,11.71798989]
[1673955243047,0.95260725,1567.4,1567.3,11.71798989]
[1673955244028,0.95260725,1567.4,1567.3,0.09698989]
[1673955244346,0.95260725,1567.4,1567.3,0.04498989]
[1673955244866,7.80894494,1567.4,1567.3,0.04498989]
[1673955245087,7.88194494,1567.4,1567.3,0.04498989]
[1673955245292,11.64005204,1567.4,1567.3,0.04498989]
[1673955245446,16.5910871,1567.4,1567.3,0.04498989]
[1673955246442,23.45309353,1567.4,1567.3,0.04498989]
[1673955246668,21.06795213,1567.4,1567.3,0.04498989]
[1673955246817,24.78533271,1567.4,1567.3,0.04498989]
[1673955247025,32.22968562,1567.4,1567.3,0.04498989]
[1673955247240,39.83778562,1567.4,1567.3,0.04498989]
[1673955249251,40.31648562,1567.4,1567.3,0.04498989]
[1673955250088,36.59910504,1567.4,1567.3,0.04498989]
[1673955252413,40.31648562,1567.4,1567.3,0.04498989]
[1673955252626,43.31648562,1567.4,1567.3,0.04498989]
[1673955252978,47.19200973,1567.4,1567.3,0.04498989]
[1673955253403,47.19200973,1567.4,1567.1,0.01720132]
[1673955253404,1.0,1567.3,1567.1,0.01720132]
[1673955253551,1.0,1567.1,1566.9,0.01720132]
[1673955253766,1.43217646,1567.0,1566.9,0.01720132]
[1673955254087,20.57703646,1567.0,1566.9,0.01720132]
[1673955254297,22.50501859,1567.0,1566.9,0.01720132]
[1673955255554,22.50501859,1567.0,1566.9,0.01720132]
[1673955258237,24.4145872,1567.0,1566.9,0.01720132]
[1673955258449,27.56103481,1567.0,1566.9,0.01720132]
[1673955259699,33.43480755,1567.0,1566.9,0.01720132]
[1673955259910,33.43480755,1567.0,1566.5,11.90762647]
[1673955259911,19.14753,1566.8,1566.5,11.90762647]
[1673955260153,6.38325,1566.6,1566.5,11.90762647]
[1673955260320,6.45625,1566.6,1566.5,0.06282647]
[1673955260599,6.45625,1566.6,1566.5,0.01082647]
[1673955260933,0.073,1566.6,1566.5,0.01082647]
[1673955261137,7.40989312,1566.8,1566.5,0.01082647]
[1673955261388,7.40989312,1566.8,1566.5,6.39435647]
[1673955261389,0.073,1566.8,1566.5,6.39435647]
[1673955261715,15.15021781,1566.9,1566.5,8.3700257]
[1673955261716,15.22321781,1566.9,1566.5,8.3700257]
[1673955262138,15.22321781,1566.9,1566.5,19.5263257]
[1673955262286,13.79164312,1566.9,1566.5,19.5263257]
[1673955262982,7.40941312,1566.9,1566.5,19.5263257]
[1673955263173,6.45503,1566.9,1566.5,25.9099757]
[1673955263351,0.073,1566.9,1566.6,2.59099757]
[1673955263566,13.79095312,1567.0,1566.6,8.97415757]
[1673955263884,7.40910312,1567.0,1566.6,9.02615757]
[1673955268240,13.79091312,1567.0,1566.6,9.02615757]
[1673955269493,13.79091312,1567.0,1566.6,15.40940757]
[1673955271063,12.83653,1567.0,1566.6,15.40940757]
[1673955271433,13.79091312,1567.0,1566.6,15.40940757]
[1673955271902,13.79091312,1567.0,1566.7,1.54094076]
[1673955272076,13.79091312,1567.0,1566.6,21.80665757]
[1673955272289,13.79091312,1567.0,1566.6,21.79265757]
[1673955273694,7.40910312,1567.0,1566.6,21.79265757]
[1673955274067,6.45472,1567.0,1566.6,21.79265757]
[1673955274848,15.22229781,1567.0,1566.6,21.79265757]
[1673955275065,16.98292953,1567.0,1566.6,19.20166]
[1673955275806,16.98292953,1567.0,1566.6,28.91926]
[1673955276865,0.95438312,1566.9,1566.6,9.7696]
[1673955277164,19.14729,1566.8,1566.6,9.7696]
[1673955277379,19.22029,1566.8,1566.6,9.7696]
[1673955277525,20.27438523,1566.8,1566.6,9.7696]
[1673955278210,21.22876835,1566.8,1566.6,9.7696]
[1673955278365,20.27438523,1566.8,1566.6,9.7696]
[1673955278582,21.22876835,1566.8,1566.6,0.052]
[1673955278929,21.22876835,1566.8,1566.5,11.21912647]
[1673955279119,14.88891684,1566.7,1566.5,11.21912647]
[1673955279328,22.29943996,1566.7,1566.5,11.21912647]
[1673955279736,22.29943996,1566.7,1566.5,0.06282647]
[1673955279944,22.29943996,1566.7,1566.5,0.01082647]
[1673955280910,15.91629996,1566.7,1566.5,0.01082647]
[1673955281102,1.06932957,1566.6,1566.5,0.01082647]
[1673955284624,8.40696269,1566.6,1566.5,0.01082647]
[1673955284782,8.47996269,1566.6,1566.5,0.01082647]
[1673955289936,8.47996269,1566.6,1566.5,0.00697018]
[1673955291451,21.72365426,1566.6,1566.5,0.00697018]
[1673955291616,24.11142051,1566.6,1566.5,0.00697018]
[1673955292297,32.40742516,1566.6,1566.5,0.00697018]
[1673955292457,33.59371172,1566.6,1566.5,0.00097018]
[1673955292681,35.05571172,1566.6,1566.5,0.00097018]
[1673955293452,31.4054234,1566.6,1566.5,0.00097018]
[1673955293674,36.79231547,1566.6,1566.5,0.00097018]
[1673955295402,36.79099543,1566.6,1566.5,0.00097018]
[1673955297917,38.69866949,1566.6,1566.5,0.00097018]
[1673955298134,1.0,1566.5,1566.4,0.02176596]
[1673955298473,27.92146045,1566.5,1566.4,0.02176596]
[1673955298689,28.47346045,1566.5,1566.4,0.02176596]
[1673955299238,29.90424418,1566.5,1566.4,0.02176596]
[1673955299389,27.99645303,1566.5,1566.4,0.02176596]
[1673955302706,31.95132138,1566.5,1566.4,0.02176596]
[1673955302891,31.47352292,1566.5,1566.4,0.02176596]
[1673955303111,28.47260978,1566.5,1566.4,0.02176596]
[1673955303437,34.57401045,1566.5,1566.4,0.02176596]
[1673955303644,38.61268471,1566.5,1566.4,0.02176596]
[1673955304332,36.22794577,1566.5,1566.4,0.00076596]
[1673955304753,42.94194577,1566.5,1566.4,0.00076596]
[1673955304969,42.94194577,1566.5,1566.2,0.02380276]
[1673955304970,1.09723404,1566.3,1566.2,0.02380276]
[1673955305204,39.46503416,1566.3,1566.2,0.02380276]
[1673955305415,44.25293005,1566.3,1566.2,0.02380276]
[1673955305647,46.15806085,1566.3,1566.2,0.02380276]
[1673955305924,40.0575882,1566.3,1566.2,0.02380276]
[1673955306090,45.2037475,1566.3,1566.2,0.02380276]
[1673955306302,42.65227752,1566.3,1566.2,0.02380276]
[1673955306528,43.71885161,1566.3,1566.2,0.02380276]
[1673955306691,41.81372081,1566.3,1566.2,0.02380276]
[1673955307093,39.04881853,1566.3,1566.2,0.02380276]
[1673955307298,38.09634023,1566.3,1566.2,0.02380276]
[1673955307622,39.0473751,1566.3,1566.2,0.02380276]
[1673955307823,38.09510619,1566.3,1566.2,0.02380276]
[1673955308160,21.64066659,1566.3,1566.2,0.02380276]
[1673955308373,12.84194,1566.3,1566.2,0.02380276]
[1673955312209,0.073,1566.3,1566.2,0.02380276]
[1673955312361,6.45711,1566.4,1566.2,0.02380276]
[1673955315717,0.073,1566.4,1566.2,6.40864276]
[1673955315979,0.073,1566.5,1566.2,14.12717561]
[1673955316185,8.83733531,1566.6,1566.2,14.12717561]
[1673955316792,2.45403531,1566.6,1566.2,30.32595561]
[1673955316983,0.95225659,1566.6,1566.2,30.32595561]
[1673955317181,2.38103531,1566.6,1566.2,30.32595561]
[1673955318165,8.76428531,1566.6,1566.2,30.32595561]
[1673955318360,8.83728531,1566.6,1566.2,30.32595561]
[1673955319390,0.95225659,1566.5,1566.2,9.88970276]
[1673955319710,6.38406,1566.4,1566.2,9.88970276]
[1673955319928,12.84112,1566.4,1566.2,9.88970276]
[1673955320393,13.79337659,1566.4,1566.2,9.88970276]
[1673955320565,15.68879762,1566.4,1566.2,0.07580276]
[1673955320912,15.68879762,1566.4,1566.2,0.02380276]
[1673955321283,0.073,1566.4,1566.2,0.02380276]
[1673955321494,0.95225659,1566.5,1566.2,19.17843276]
[1673955321748,0.95225659,1566.5,1566.2,19.23043276]
[1673955322982,2.38103531,1566.6,1566.2,19.23043276]
[1673955323200,2.38103531,1566.6,1566.2,21.79567261]
[1673955323387,0.95225659,1566.5,1566.2,21.79567261]
[1673955323599,0.95225659,1566.5,1566.2,31.49837261]
[1673955325086,0.95225659,1566.5,1566.2,31.49607105]
[1673955328962,0.95225659,1566.5,1566.2,32.95807105]
[1673955333412,0.95225659,1566.5,1566.4,6.38406]
[1673955333662,0.95225659,1566.5,1566.4,6.43606]
[1673955335374,2.38103531,1566.6,1566.4,6.43606]
[1673955335624,4.09355892,1566.6,1566.4,6.43606]
[1673955335829,0.95225659,1566.5,1566.4,6.43606]
[1673955337970,4.16655892,1566.6,1566.4,6.43606]
[1673955338179,4.09355892,1566.6,1566.4,6.43606]
[1673955338335,2.38103531,1566.6,1566.4,6.43606]
[1673955338704,0.95225659,1566.5,1566.4,6.43606]
[1673955339288,2.38103531,1566.6,1566.4,6.43606]
[1673955339745,2.38103531,1566.6,1566.4,12.82012]
[1673955339981,0.95225659,1566.6,1566.4,12.82012]
[1673955340284,1.50177872,1566.7,1566.5,1.462]
[1673955340285,0.95225659,1566.7,1566.5,1.462]
[1673955340439,0.95225659,1566.7,1566.6,12.7665]
[1673955340649,0.95225659,1566.7,1566.6,12.8185]
[1673955341547,2.38103531,1566.8,1566.6,12.8185]
[1673955342758,0.95225659,1566.7,1566.6,12.8185]
[1673955343803,0.95225659,1566.7,1566.6,0.052]
[1673955343979,2.61913884,1566.7,1566.4,22.18623]
[1673955344690,0.95225659,1566.6,1566.4,22.18623]
[1673955345285,0.95225659,1566.6,1566.5,3.11662407]
[1673955345525,4.28822287,1566.9,1566.7,19.14852]
[1673955345526,1.02525659,1566.9,1566.7,19.14852]
[1673955345701,0.95225659,1566.9,1566.7,23.77914407]
[1673955345911,0.95225659,1566.9,1566.7,27.37468414]
[1673955347614,2.38103531,1566.9,1566.7,27.37468414]
[1673955347824,0.95225659,1566.9,1566.7,27.37468414]
[1673955348904,0.95225659,1566.9,1566.7,27.37186181]
[1673955350350,2.38103531,1567.0,1566.7,27.37186181]
[1673955350542,0.95225659,1566.9,1566.8,20.60829]
[1673955350754,0.95225659,1566.9,1566.8,20.66029]
[1673955350961,2.38103531,1567.0,1566.8,24.03693718]
[1673955351209,0.95225659,1567.0,1566.9,20.60806]
[1673955351416,0.95225659,1567.0,1566.9,20.66006]
[1673955351587,1.42877872,1567.0,1566.9,6.43402]
[1673955351801,2.38299688,1567.0,1566.9,6.43402]
[1673955352047,2.38299688,1567.0,1566.9,0.052]
[1673955352270,2.38299688,1567.0,1566.9,6.38202]
[1673955352490,2.38299688,1567.0,1566.9,6.43402]
[1673955354449,0.95421816,1567.0,1566.9,6.43402]
[1673955355297,0.95421816,1567.0,1566.9,0.052]
[1673955355514,2.02845393,1567.0,1566.8,7.88925]
[1673955355832,0.95421816,1566.9,1566.8,0.052]
[1673955356067,0.95421816,1566.9,1566.8,6.38242]
[1673955356242,0.95421816,1566.9,1566.8,6.43442]
[1673955356995,0.95421816,1566.9,1566.8,0.052]
[1673955357331,0.95421816,1566.9,1566.7,12.77928]
[1673955357332,1.29994143,1566.9,1566.7,12.81728]
[1673955358188,2.72872015,1566.9,1566.7,6.43462]
[1673955359562,0.95421816,1566.8,1566.7,6.43462]
[1673955361958,0.95721816,1566.8,1566.7,6.43462]
[1673955362128,0.95421816,1566.8,1566.7,6.43462]
[1673955364262,0.003,1566.8,1566.7,6.43462]
[1673955364436,2.38299688,1566.9,1566.7,12.81746]
[1673955365327,3.56469523,1566.9,1566.7,12.81746]
[1673955366117,0.95421816,1566.8,1566.7,12.81746]
[1673955366997,2.38299688,1566.9,1566.7,12.81746]
[1673955370739,0.95421816,1566.8,1566.7,12.81746]
[1673955371176,2.38299688,1566.9,1566.7,12.81746]
[1673955371598,0.95421816,1566.8,1566.7,12.81746]
[1673955377771,2.38299688,1566.8,1566.7,12.81746]
[1673955379828,1.42877872,1566.8,1566.7,12.81746]
[1673955380802,1.42877872,1566.8,1566.7,6.43462]
[1673955380989,4.86722303,1566.8,1566.7,0.04921865]
[1673955381204,4.86722303,1566.8,1566.6,12.29637523]
[1673955381377,3.33999769,1566.7,1566.6,12.29637523]
[1673955381801,1.9051308,1566.7,1566.6,12.29637523]
[1673955382057,2.4991531,1566.7,1566.6,12.29637523]
[1673955382274,2.4991531,1566.7,1566.6,1.00147523]
[1673955382591,2.4991531,1566.7,1566.6,0.95225658]
[1673955383691,4.88224517,1566.7,1566.6,0.95225658]
[1673955383955,5.88224517,1566.7,1566.6,0.95225658]
[1673955384286,3.5721531,1566.7,1566.6,0.95225658]
[1673955384430,3.4991531,1566.7,1566.6,0.95225658]
[1673955385180,4.88224517,1566.7,1566.6,0.95225658]
[1673955385387,2.4991531,1566.7,1566.6,0.95225658]
[1673955387525,4.88224517,1566.7,1566.6,0.95225658]
[1673955387739,2.4991531,1566.7,1566.6,0.95225658]
[1673955391378,2.4991531,1566.7,1566.6,1.57036821]
[1673955392341,15.2648331,1566.7,1566.6,1.57036821]
[1673955392554,17.72092517,1566.7,1566.6,1.57036821]
[1673955393620,15.81579437,1566.7,1566.6,1.57036821]
[1673955394106,16.29479437,1566.7,1566.6,1.57036821]
[1673955398229,18.20592047,1566.7,1566.6,1.57036821]
[1673955400521,17.72692047,1566.7,1566.6,1.57036821]
[1673955401053,15.81579437,1566.7,1566.6,1.57036821]
[1673955401295,16.29479437,1566.7,1566.6,1.57036821]
[1673955403835,18.20554969,1566.7,1566.6,1.56637412]
[1673955405880,16.29479437,1566.7,1566.6,1.56637412]
[1673955406523,16.29479437,1566.7,1566.6,0.61811163]
[1673955407365,18.20537955,1566.7,1566.6,0.61811163]
[1673955408456,5.43969955,1566.7,1566.6,0.61811163]
[1673955408616,1.98358518,1566.7,1566.6,7.00136163]
[1673955408824,1.98358518,1566.7,1566.6,7.05058028]
[1673955408825,1.91058518,1566.7,1566.6,7.05058028]
[1673955409027,1.91058518,1566.7,1566.6,0.66733028]
[1673955409239,1.91058518,1566.7,1566.6,0.61811163]
[1673955410104,4.29367725,1566.7,1566.6,0.61811163]
[1673955410539,1.91058518,1566.7,1566.6,0.61811163]
[1673955412999,4.29367725,1566.7,1566.6,0.61811163]
[1673955415204,6.85251786,1566.7,1566.6,0.61811163]
[1673955415415,29.49430089,1566.7,1566.6,0.61811163]
[1673955415785,28.03430089,1566.7,1566.6,0.61811163]
[1673955416935,29.25130089,1566.7,1566.6,0.61811163]
[1673955417202,32.96868147,1566.7,1566.6,0.55630047]
[1673955417516,29.25130089,1566.7,1566.6,0.55630047]
[1673955418212,30.10432637,1566.7,1566.6,0.55630047]
[1673955418451,26.38694579,1566.7,1566.6,0.55630047]
[1673955419681,33.10432637,1566.7,1566.6,0.55630047]
[1673955420035,34.33032637,1566.7,1566.6,0.55630047]
[1673955420245,37.67356305,1566.7,1566.6,0.55630047]
[1673955424617,33.95618247,1566.7,1566.6,0.55630047]
[1673955425044,29.48131157,1566.7,1566.6,0.55630047]
[1673955425393,28.26431157,1566.7,1566.6,0.55630047]
[1673955425610,2.94136578,1566.7,1566.6,0.55630047]
[1673955425821,2.39011876,1566.7,1566.6,0.55630047]
[1673955425975,17.41151578,1566.8,1566.6,0.55630047]
[1673955426710,23.79419578,1566.8,1566.6,0.55630047]
[1673955426922,2.86836578,1566.7,1566.6,0.55630047]
[1673955427162,11.63062536,1566.7,1566.6,0.55630047]
[1673955427393,25.92530536,1566.7,1566.6,0.55630047]
[1673955429495,29.04192943,1566.7,1566.6,0.55630047]
[1673955429812,30.25692943,1566.7,1566.6,0.50067043]
[1673955431239,27.86756365,1566.7,1566.6,0.50067043]
[1673955434182,25.42656365,1566.7,1566.6,0.50067043]
[1673955434376,26.65256365,1566.7,1566.6,0.50067043]
[1673955435134,29.99580033,1566.7,1566.6,0.50067043]
[1673955435658,26.65256365,1566.7,1566.6,0.50067043]
[1673955436552,29.52081881,1566.7,1566.6,0.50067043]
[1673955437443,26.65256365,1566.7,1566.6,0.50067043]
[1673955437634,25.42656365,1566.7,1566.6,0.50067043]
[1673955437845,26.16856365,1566.7,1566.6,0.50067043]
[1673955439646,29.51180033,1566.7,1566.6,0.45060339]
[1673955444736,36.22918091,1566.7,1566.6,0.45060339]
[1673955444892,2.60278603,1566.6,1566.3,0.06521865]
[1673955445104,2.86876012,1566.4,1566.2,0.0215012]
[1673955445351,21.54405773,1566.3,1566.2,0.0215012]
[1673955445523,21.84705773,1566.3,1566.2,0.0215012]
[1673955445753,24.22647731,1566.3,1566.2,0.0215012]
[1673955449617,26.13803381,1566.3,1566.2,0.0215012]
[1673955449853,27.34310138,1566.3,1566.2,0.0215012]
[1673955450208,28.66983423,1566.3,1566.2,0.0215012]
[1673955450376,24.95245365,1566.3,1566.2,0.0215012]
[1673955450723,31.53859435,1566.3,1566.2,0.0215012]
[1673955451101,36.89003353,1566.3,1566.2,0.0215012]
[1673955451312,36.24369435,1566.3,1566.2,0.01935109]
[1673955453199,34.02127341,1566.3,1566.2,0.01935109]
[1673955453409,37.02268532,1566.3,1566.2,0.01935109]
[1673955453667,39.8888447,1566.3,1566.2,0.01935109]
[1673955453858,37.02268532,1566.3,1566.2,0.01935109]
[1673955455145,36.37634614,1566.3,1566.2,0.01935109]
[1673955455354,37.02268532,1566.3,1566.2,0.01935109]
[1673955455569,39.88832448,1566.3,1566.2,0.01935109]
[1673955455724,39.88832012,1566.3,1566.2,0.01935109]
[1673955456555,44.96168532,1566.3,1566.0,1.56779041]
[1673955456877,44.96168532,1566.3,1566.0,0.35599267]
[1673955456878,34.96675157,1566.1,1566.0,0.35599267]
[1673955457092,42.00601985,1566.1,1566.0,0.35599267]
[1673955457304,39.14001235,1566.1,1566.0,0.35599267]
[1673955457510,42.65021483,1566.1,1566.0,0.35599267]
[1673955457721,45.02963441,1566.1,1566.0,0.35599267]
[1673955458409,42.16577111,1566.1,1566.0,0.35599267]
[1673955458635,38.47052283,1566.1,1566.0,0.35599267]
[1673955459140,42.16577111,1566.1,1566.0,0.35599267]
[1673955459451,44.55124223,1566.1,1566.0,0.35599267]
[1673955462059,38.62999395,1566.1,1566.0,0.35599267]
[1673955462251,39.89140645,1566.1,1566.0,0.35599267]
[1673955462461,37.50593533,1566.1,1566.0,0.35599267]
[1673955468291,41.67890305,1566.1,1566.0,0.32039341]
[1673955468498,42.32524223,1566.1,1566.0,0.32039341]
[1673955469063,38.62999395,1566.1,1566.0,0.32039341]
[1673955470945,45.34399395,1566.1,1566.0,0.32039341]
[1673955471103,46.65377111,1566.1,1566.0,0.32039341]
[1673955471312,49.65566249,1566.1,1566.0,0.32039341]
[1673955473531,45.96041421,1566.1,1566.0,0.32039341]
[1673955474530,49.65566249,1566.1,1566.0,0.32039341]
[1673955476463,39.93977111,1566.1,1566.0,0.03039341]
[1673955476670,42.94167421,1566.1,1566.0,0.03039341]
[1673955476992,39.24642593,1566.1,1566.0,0.03039341]
[1673955477234,42.94167421,1566.1,1566.0,0.03039341]
[1673955477405,45.80553751,1566.1,1566.0,0.03039341]
[1673955478400,45.80553751,1566.1,1566.0,0.02735407]
[1673955479208,53.74553751,1566.1,1566.0,0.00035407]
[1673955479421,7.714,1566.0,1565.9,0.0095029]
[1673955479660,44.32068648,1566.0,1565.9,0.0095029]
[1673955479912,44.96702566,1566.0,1565.9,0.0095029]
[1673955480190,43.31434693,1566.0,1565.9,0.0095029]
[1673955480381,46.1779714,1566.0,1565.9,0.0095029]
[1673955480603,43.31434693,1566.0,1565.9,0.0095029]
[1673955481455,44.23028471,1566.0,1565.9,0.0095029]
[1673955481678,40.53503643,1566.0,1565.9,0.0095029]
[1673955482263,44.23028471,1566.0,1565.9,0.0095029]
[1673955483451,44.71628471,1566.0,1565.9,0.0095029]
[1673955483662,41.85265021,1566.0,1565.9,0.0095029]